fUSD/lending_fUSD_20240813
["ID","MTS","AMOUNT","RATE_DAILY","PERIOD"]
[334790732,1723570668880,-18006.53014604,9.9e-05,2]
[334790733,1723570668904,-1000.0,9.962e-05,2]
[334790734,1723570668929,-993.46985396,9.962e-05,2]
[334790735,1723570669630,-316.91510001,9.962e-05,2]
[334790736,1723570669653,-1370.39939516,9.962e-05,2]
[334790737,1723570669675,-526.77808365,9.962e-05,2]
[334790738,1723570669696,-1852.42,0.00010048,2]
[334790739,1723570669718,-150.0,0.00010077,2]
[334790740,1723570669740,-2249.6,0.00010078,2]
[334790741,1723570669764,-1000.0,0.00010153,2]
[334790742,1723570669785,-1012.51,0.00010233,2]
[334790743,1723570669808,-209.3,0.00010471,2]
[334790744,1723570669831,-1113.71,0.0001051,2]
[334790745,1723570669855,-1133.44301925,0.0001068,2]
[334790746,1723570669877,-9064.92440193,0.00010683,2]
[334790747,1723570686948,-15487.6195,9.799e-05,2]
[334790748,1723570686969,-1564.954173,9.849e-05,2]
[334790749,1723570686991,-427.23,0.00010093,2]
[334790750,1723570687013,-2520.196327,0.00010683,2]
[334790751,1723570687619,-20000.0,0.00010683,2]
[334790752,1723570688308,-20000.0,0.00010683,2]
[334790753,1723570695965,-16600.0,0.00010683,2]
[334790754,1723570706949,-1670.0,0.00010683,2]
[334790755,1723571015213,959.73,8.219e-05,2]
[334790756,1723571037122,20396.1727788,8.219e-05,2]
[334790757,1723571037606,1269.15931583,8.219e-05,2]
[334790758,1723571038411,3071.43156646,8.219e-05,2]
[334790759,1723571040939,1285.34463279,8.219e-05,2]
[334790760,1723571044222,1310.38495397,8.219e-05,2]
[334790761,1723571047202,227.78421077,8.219e-05,2]
[334790762,1723571047418,2566.45544726,8.219e-05,2]
[334790763,1723571056522,183732.39047433,8.219e-05,2]
[334790764,1723571057802,760.25096327,8.219e-05,2]
[334790765,1723571071537,183732.39047433,8.219e-05,2]
[334790766,1723571072792,760.25096327,8.219e-05,2]
[334790767,1723571073105,364.72077219,8.219e-05,2]
[334790768,1723571075482,1223.99342082,8.219e-05,2]
[334790769,1723571082949,1497.34,9.578e-05,2]
[334790770,1723571097166,309.86406134,8.219e-05,2]
[334790771,1723571103110,693.33525753,8.219e-05,2]
[334790772,1723571107831,7580.44085603,8.219e-05,2]
[334790773,1723571112155,12810.45519386,8.219e-05,2]
[334790774,1723571115950,1285.34463279,8.219e-05,2]
[334790775,1723571116123,10799.18794961,8.219e-05,2]
[334790776,1723571117841,304.92,9.528e-05,2]
[334790777,1723571118066,693.33525753,8.219e-05,2]
[334790778,1723571137793,7580.44085603,8.219e-05,2]
[334790779,1723571141609,1269.15931583,8.219e-05,2]
[334790780,1723571152419,3071.43156646,8.219e-05,2]
[334790781,1723571155343,1310.38495397,8.219e-05,2]
[334790782,1723571159930,2566.45544726,8.219e-05,2]
[334790783,1723571168069,-1852.42,9.661e-05,2]
[334790784,1723571168093,-300.0,9.712e-05,2]
[334790785,1723571168115,-300.0,9.712e-05,2]
[334790786,1723571168139,-23900.0,9.713e-05,2]
[334790787,1723571168163,-200.0,9.756e-05,2]
[334790788,1723571168186,-739.19,9.759e-05,2]
[334790789,1723571168210,-1219.19,9.763e-05,2]
[334790790,1723571168232,-150.0,9.799e-05,2]
[334790791,1723571168254,-15334.3324,9.8e-05,2]
[334790792,1723571168275,-7238.2415,9.8e-05,2]
[334790793,1723571168297,-558.4,9.814e-05,2]
[334790794,1723571168321,-834.76,9.938e-05,2]
[334790795,1723571168343,-1223.99342082,9.962e-05,2]
[334790796,1723571168364,-760.25096327,9.962e-05,2]
[334790797,1723571168386,-183732.39047433,9.962e-05,2]
[334790798,1723571168407,-1285.34463279,9.962e-05,2]
[334790799,1723571168430,-550.0,0.0001,2]
[334790800,1723571168461,-213.27,0.00010083,2]
[334790801,1723571168481,-3022.5,0.00010088,2]
[334790802,1723571168505,-250.0,0.00010093,2]
[334790803,1723571168527,-272.51,0.00010093,2]
[334790804,1723571168548,-221.55,0.00010093,2]
[334790805,1723571168569,-469.65,0.00010093,2]
[334790806,1723571168591,-4021.41,0.00010103,2]
[334790807,1723571168617,-4285.64,0.00010108,2]
[334790808,1723571168639,-200.0,0.00010167,2]
[334790809,1723571168660,-173.2,0.00010325,2]
[334790810,1723571168687,-959.73,0.0001046,2]
[334790811,1723571168711,-2500.0,0.00010583,2]
[334790812,1723571168732,-449.61806259,0.00010683,2]
[334790813,1723571168868,-150.0,0.00010683,2]
[334790814,1723571168893,-150.0,0.00010683,2]
[334790815,1723571168915,-150.0,0.00010683,2]
[334790816,1723571168936,-150.0,0.00010683,2]
[334790817,1723571168957,-150.0,0.00010683,2]
[334790818,1723571168979,-150.0,0.00010683,2]
[334790819,1723571168999,-150.0,0.00010683,2]
[334790820,1723571169025,-150.0,0.00010683,2]
[334790821,1723571169046,-150.0,0.00010683,2]
[334790822,1723571169067,-150.0,0.00010683,2]
[334790823,1723571169089,-150.0,0.00010683,2]
[334790824,1723571169111,-150.0,0.00010683,2]
[334790825,1723571169133,-150.0,0.00010683,2]
[334790826,1723571169155,-150.0,0.00010683,2]
[334790827,1723571169176,-150.0,0.00010683,2]
[334790828,1723571169198,-150.0,0.00010683,2]
[334790829,1723571169224,-150.0,0.00010683,2]
[334790830,1723571169251,-150.0,0.00010683,2]
[334790831,1723571169273,-150.0,0.00010683,2]
[334790832,1723571169296,-150.0,0.00010683,2]
[334790833,1723571169320,-150.0,0.00010683,2]
[334790834,1723571169345,-150.0,0.00010683,2]
[334790835,1723571169367,-150.0,0.00010683,2]
[334790836,1723571169390,-150.0,0.00010683,2]
[334790837,1723571169413,-201.90631013,0.00010683,2]
[334790838,1723571169437,-300.00869841,0.00010683,2]
[334790839,1723571169464,-500.0,0.00010683,2]
[334790840,1723571169488,-975.0,0.00010683,2]
[334790841,1723571169513,-30144.87927107,0.00010683,2]
[334790842,1723571169538,-84573.3721,0.00010683,2]
[334790843,1723571169561,-420.0,0.00010684,2]
[334790844,1723571169585,-420.0,0.00010684,2]
[334790845,1723571169611,-150.0,0.00010779,2]
[334790846,1723571169633,-150.0,0.00010779,2]
[334790847,1723571169658,-263.24769125,0.00010861,2]
[334790848,1723571169679,-1455.41,0.0001089,2]
[334790849,1723571169700,-580.56,0.0001089,2]
[334790850,1723571169724,-297.61338598,0.00010899,2]
[334790851,1723571169747,-297.61338598,0.00010899,2]
[334790852,1723571169770,-297.61338598,0.00010899,2]
[334790853,1723571169793,-297.61338598,0.00010899,2]
[334790854,1723571169816,-297.61338598,0.00010899,2]
[334790855,1723571169839,-297.61338598,0.00010899,2]
[334790856,1723571169862,-297.61338598,0.00010899,2]
[334790857,1723571169885,-297.61338598,0.00010899,2]
[334790858,1723571169908,-297.61338598,0.00010899,2]
[334790859,1723571169931,-7500.0,0.000109,2]
[334790860,1723571169954,-297.61338598,0.000109,2]
[334790861,1723571169977,-14836.41577833,0.000109,2]
[334790862,1723571170000,-157.63662071,0.000109,2]
[334790863,1723571170023,-5118.72,0.00010959,2]
[334790864,1723571170046,-250.0,0.00010959,2]
[334790865,1723571170069,-2000.0,0.00010959,2]
[334790866,1723571170092,-200.0,0.00010973,2]
[334790867,1723571170116,-200.0,0.00010975,2]
[334790868,1723571170138,-7090.3620189,0.00010997,2]
[334790869,1723571170161,-12870.4614242,0.00010997,2]
[334790870,1723571170183,-6393.1320613,0.00010997,2]
[334790871,1723571170208,-73931.847361,0.00010997,2]
[334790872,1723571170235,-11075.717026,0.00010997,2]
[334790873,1723571170258,-150.01,0.00010999,2]
[334790874,1723571170285,-98540.10988962,0.00011,2]
[334790875,1723571171129,169.46887535,0.000109,2]
[334790876,1723571175604,169.46887535,0.000109,2]
[334790877,1723571176098,1591.55266084,9.712e-05,2]
[334790878,1723571182426,1371.7527,0.00010583,2]
[334790879,1723571182471,200.0,0.00010973,2]
[334790880,1723571183186,-77610.68767213,0.00011,2]
[334790881,1723571189921,2566.45544726,8.219e-05,2]
[334790882,1723571272834,7580.44085603,8.219e-05,2]
[334790883,1723571278024,10000.0,8.219e-05,2]
[334790884,1723571278051,173732.39047433,8.219e-05,2]
[334790885,1723571284304,1223.99342082,8.219e-05,2]
[334790886,1723571291427,3071.43156646,8.219e-05,2]
[334790887,1723571302624,1269.15931583,8.219e-05,2]
[334790888,1723571304235,1342.39236569,8.219e-05,2]
[334790889,1723571304925,2566.45544726,8.219e-05,2]
[334790890,1723571318557,526.56788394,8.219e-05,2]
[334790891,1723571318580,742.59143189,8.219e-05,2]
[334790893,1723571331846,563.06798161,8.219e-05,2]
[334790895,1723571348459,825.21689476,8.219e-05,2]
[334790896,1723571368029,7869.12369174,8.219e-05,2]
[334790897,1723571368057,10000.0,8.219e-05,2]
[334790898,1723571368078,10000.0,8.219e-05,2]
[334790899,1723571368099,10000.0,8.219e-05,2]
[334790900,1723571368121,10000.0,8.219e-05,2]
[334790901,1723571368145,10000.0,8.219e-05,2]
[334790902,1723571368167,10000.0,8.219e-05,2]
[334790903,1723571368187,10000.0,8.219e-05,2]
[334790904,1723571368206,10000.0,8.219e-05,2]
[334790905,1723571368228,10000.0,8.219e-05,2]
[334790906,1723571368252,76073.12432039,8.219e-05,2]
[334790907,1723571371805,867.1680126,8.219e-05,2]
[334790908,1723571376928,3071.43156646,8.219e-05,2]
[334790909,1723571377831,7580.44085603,8.219e-05,2]
[334790910,1723571397934,2566.45544726,8.219e-05,2]
[334790911,1723571399640,1269.15931583,8.219e-05,2]
[334790951,1723571433111,-257.04102161,9.962e-05,2]
[334790952,1723571433121,-5422.55661975,9.962e-05,2]
[334790953,1723571433177,-16339.12424774,9.962e-05,2]
[334790954,1723571433186,-196.71089893,9.962e-05,2]
[334790955,1723571433196,-227.78421077,9.962e-05,2]
[334790956,1723571433205,-11189.68326892,9.962e-05,2]
[334790957,1723571433215,-7580.44085603,9.962e-05,2]
[334790958,1723571433224,-3071.43156646,9.962e-05,2]
[334790959,1723571433233,-1739.31522,0.0001089,2]
[334790960,1723571433243,-300.0,0.00010999,2]
[334790961,1723571433252,-98277.41489291,0.00011,2]
[334790964,1723571438107,-21861.0924364,0.00011,2]
[334790965,1723571438178,-27408.96250842,0.00011,2]
[334790966,1723571438187,-148881.78844386,0.00011,2]
[334791050,1723571440069,-24912.89410395,0.00011,2]
[334791061,1723571440420,-260.62615921,0.00011,2]
[334791064,1723571440439,-818.907,0.00011,2]
[334791075,1723571443331,-632.93440001,0.00011,2]
[334791076,1723571443343,-5523.42262638,0.00011,2]
[334791077,1723571443378,-5590.10966965,0.00011,2]
[334791079,1723571444199,-721.76544406,0.00011,2]
[334791080,1723571444212,-197330.72654702,0.00011,2]
[334791089,1723571447289,-2730.0,0.00011,2]
[334791092,1723571448428,-682.84999999,0.00011,2]
[334791093,1723571448439,-341.13686896,0.00011,2]
[334791094,1723571448465,-1135.03670988,0.00011,2]
[334791095,1723571525707,894.07,8.537e-05,2]
[334791096,1723571594970,2566.45544726,8.537e-05,2]
[334791097,1723571598147,804.39663482,8.537e-05,2]
[334791098,1723571600088,193.98112342,8.537e-05,2]
[334791099,1723571600407,871.98206993,8.537e-05,2]
[334791100,1723571601378,155.0,8.537e-05,2]
[334791101,1723571603492,155.0,8.537e-05,2]
[334791102,1723571607589,523.49996148,8.537e-05,2]
[334791103,1723571607610,169.83529605,8.537e-05,2]
[334791104,1723571608310,213.77284399,8.537e-05,2]
[334791105,1723571608989,485.6993547,8.537e-05,2]
[334791106,1723571611922,7580.44085603,8.537e-05,2]
[334791107,1723571613246,1309.79366313,8.537e-05,2]
[334791108,1723571614158,240.4579861,8.537e-05,2]
[334791109,1723571614180,169.53142382,8.537e-05,2]
[334791110,1723571615153,9830.46857618,8.537e-05,2]
[334791111,1723571615174,10000.0,8.537e-05,2]
[334791112,1723571615194,565.70420262,8.537e-05,2]
[334791113,1723571615832,1223.79025423,8.537e-05,2]
[334791114,1723571619109,291.65836493,8.537e-05,2]
[334791115,1723571623035,3071.43156646,8.537e-05,2]
[334791118,1723571696897,1371.64874251,8.537e-05,2]
[334791119,1723571696961,2566.45544726,8.537e-05,2]
[334791120,1723571699246,909.31142199,8.537e-05,2]
[334791121,1723571699267,1606.4400158,8.537e-05,2]
[334791122,1723571705824,7580.44085603,8.537e-05,2]
[334791123,1723571708184,813.11912817,8.537e-05,2]
[334791124,1723571708205,1753.33631909,8.537e-05,2]
[334791125,1723571713062,8246.66368091,8.537e-05,2]
[334791126,1723571713093,10000.0,8.537e-05,2]
[334791127,1723571713113,10000.0,8.537e-05,2]
[334791128,1723571713149,10000.0,8.537e-05,2]
[334791129,1723571713190,10000.0,8.537e-05,2]
[334791130,1723571713215,304.945178,8.537e-05,2]
[334791131,1723571714125,291.65836493,8.537e-05,2]
[334791132,1723571723407,155.0,8.537e-05,2]
[334791133,1723571725602,693.33525753,8.537e-05,2]
[334791134,1723571730646,1269.15931583,8.537e-05,2]
[334791135,1723571732156,363.7738379,8.537e-05,2]
[334791136,1723571736226,227.78421077,8.537e-05,2]
[334791137,1723571737945,3071.43156646,8.537e-05,2]
[334791138,1723571741266,1310.38495397,8.537e-05,2]
[334791139,1723571742870,1223.99342082,8.537e-05,2]
[334791140,1723571745741,872.46047691,8.537e-05,2]
[334791141,1723571747291,201.0432667,8.537e-05,2]
[334791142,1723571747656,15.03015018,8.537e-05,2]
[334791143,1723571747677,396.97837584,8.537e-05,2]
[334791144,1723571749217,425.98331669,8.537e-05,2]
[334791145,1723571750814,155.0,8.537e-05,2]
[334791146,1723571752027,1371.64874251,8.537e-05,2]
[334791147,1723571752059,155.0,8.537e-05,2]
[334791148,1723571752487,1285.34463279,8.537e-05,2]
[334791149,1723571754152,6210.04493217,8.537e-05,2]
[334791150,1723571754173,10000.0,8.537e-05,2]
[334791151,1723571754193,26.7122242,8.537e-05,2]
[334791152,1723571754798,973.6688372,8.537e-05,2]
[334791153,1723571754986,1285.34463279,8.537e-05,2]
[334791154,1723571756972,214.71937121,8.537e-05,2]
[334791155,1723571763967,760.25096327,8.537e-05,2]
[334791156,1723571769995,485.74520944,8.537e-05,2]
[334791157,1723571771262,1310.38495397,8.537e-05,2]
[334791158,1723571779356,425.98331669,8.537e-05,2]
[334791159,1723571784799,973.6688372,8.537e-05,2]
[334791160,1723571802967,3325.14355523,8.537e-05,2]
[334791161,1723571807962,218.3780988,8.537e-05,2]
[334791162,1723571807984,2348.07734846,8.537e-05,2]
[334791163,1723571813885,7580.44085603,8.537e-05,2]
[334791164,1723571816091,71.48179551,8.537e-05,2]
[334791165,1723571816115,70957.48080141,8.537e-05,2]
[334791166,1723571820151,323.61461587,8.537e-05,2]
[334791167,1723571831667,1269.15931583,8.537e-05,2]
[334791168,1723571837344,1223.99342082,8.537e-05,2]
[334791169,1723571840789,693.33525753,8.537e-05,2]
[334791170,1723571840945,3071.43156646,8.537e-05,2]
[334791171,1723571842220,227.78421077,8.537e-05,2]
[334791172,1723571846906,309.92632287,8.537e-05,2]
[334791173,1723571846932,1371.64874251,8.537e-05,2]
[334791174,1723571848499,155.0,8.537e-05,2]
[334791175,1723571853655,411.60120989,8.537e-05,2]
[334791176,1723571854983,485.65349996,8.537e-05,2]
[334791177,1723571855228,872.46047691,8.537e-05,2]
[334791178,1723571856364,760.25096327,8.537e-05,2]
[334791179,1723571857217,227.78421077,8.537e-05,2]
[334791180,1723571860505,189.13011824,8.537e-05,2]
[334791181,1723571860525,1096.21451455,8.537e-05,2]
[334791182,1723571866085,172.13304925,5e-05,2]
[334791183,1723571870235,872.46047691,8.537e-05,2]
[334791184,1723571873655,7859.19195929,8.537e-05,2]
[334791185,1723571873679,8377.56519708,8.537e-05,2]
[334791186,1723571875566,500.0,8.537e-05,2]
[334791187,1723571875911,500.0,8.537e-05,2]
[334791188,1723571876123,151.0,8.537e-05,2]
[334791189,1723571876214,471.43480292,8.537e-05,2]
[334791190,1723571876234,28.56519708,8.537e-05,2]
[334791191,1723571876865,500.0,8.537e-05,2]
[334791192,1723571877198,500.0,8.537e-05,2]
[334791193,1723571877300,151.0,8.537e-05,2]
[334791194,1723571877610,500.0,8.537e-05,2]
[334791195,1723571877882,500.0,8.537e-05,2]
[334791196,1723571877938,151.0,8.537e-05,2]
[334791197,1723571878195,500.0,8.537e-05,2]
[334791198,1723571878293,151.0,8.537e-05,2]
[334791199,1723571878500,654.0,8.537e-05,2]
[334791200,1723571878615,151.0,8.537e-05,2]
[334791201,1723571878929,151.0,8.537e-05,2]
[334791202,1723571879271,201.0,8.537e-05,2]
[334791203,1723571885382,500.0,8.537e-05,2]
[334791204,1723571885744,500.0,8.537e-05,2]
[334791205,1723571886427,500.0,8.537e-05,2]
[334791206,1723571886752,500.0,8.537e-05,2]
[334791207,1723571886961,155.23,8.219e-05,2]
[334791208,1723571887114,500.0,8.537e-05,2]
[334791209,1723571887222,425.98331669,8.537e-05,2]
[334791210,1723571887577,500.0,8.537e-05,2]
[334791211,1723571887892,500.0,8.537e-05,2]
[334791212,1723571888210,500.0,8.537e-05,2]
[334791213,1723571888538,500.0,8.537e-05,2]
[334791214,1723571888866,500.0,8.537e-05,2]
[334791215,1723571889210,280.22148623,8.537e-05,2]
[334791216,1723571889232,219.77851377,8.537e-05,2]
[334791217,1723571889532,500.0,8.537e-05,2]
[334791218,1723571889852,500.0,8.537e-05,2]
[334791219,1723571890177,500.0,8.537e-05,2]
[334791220,1723571890515,500.0,8.537e-05,2]
[334791221,1723571890832,500.0,8.537e-05,2]
[334791222,1723571891599,500.0,8.537e-05,2]
[334791223,1723571891860,500.0,8.537e-05,2]
[334791224,1723571892174,500.0,8.537e-05,2]
[334791225,1723571893135,500.0,8.537e-05,2]
[334791226,1723571893237,500.0,8.537e-05,2]
[334791227,1723571893527,500.0,8.537e-05,2]
[334791228,1723571893859,500.0,8.537e-05,2]
[334791229,1723571894196,500.0,8.537e-05,2]
[334791230,1723571894815,500.0,8.537e-05,2]
[334791231,1723571894973,2566.45544726,8.537e-05,2]
[334791232,1723571895317,213.76603897,8.537e-05,2]
[334791233,1723571895341,286.23396103,8.537e-05,2]
[334791234,1723571895496,500.0,8.537e-05,2]
[334791235,1723571895861,500.0,8.537e-05,2]
[334791236,1723571896574,500.0,8.537e-05,2]
[334791237,1723571896944,500.0,8.537e-05,2]
[334791238,1723571897280,500.0,8.537e-05,2]
[334791239,1723571897632,500.0,8.537e-05,2]
[334791240,1723571897949,500.0,8.537e-05,2]
[334791241,1723571898678,500.0,8.537e-05,2]
[334791242,1723571899338,500.0,8.537e-05,2]
[334791243,1723571899711,500.0,8.537e-05,2]
[334791244,1723571900026,500.0,8.537e-05,2]
[334791245,1723571900280,1310.38495397,8.537e-05,2]
[334791246,1723571900359,500.0,8.537e-05,2]
[334791247,1723571900671,500.0,8.537e-05,2]
[334791248,1723571900999,500.0,8.537e-05,2]
[334791249,1723571901311,500.0,8.537e-05,2]
[334791250,1723571901642,500.0,8.537e-05,2]
[334791251,1723571902008,500.0,8.537e-05,2]
[334791252,1723571902350,500.0,8.537e-05,2]
[334791253,1723571902762,500.0,8.537e-05,2]
[334791254,1723571903101,500.0,8.537e-05,2]
[334791255,1723571903646,4458.86452158,8.537e-05,2]
[334791256,1723571903697,500.0,8.537e-05,2]
[334791257,1723571903778,500.0,8.537e-05,2]
[334791258,1723571904100,500.0,8.537e-05,2]
[334791259,1723571904424,500.0,8.537e-05,2]
[334791260,1723571904760,500.0,8.537e-05,2]
[334791261,1723571905118,500.0,8.537e-05,2]
[334791262,1723571905455,500.0,8.537e-05,2]
[334791263,1723571906072,23012.64338125,8.537e-05,2]
[334791264,1723571906128,500.0,8.537e-05,2]
[334791265,1723571906431,257.1176443,8.537e-05,10]
[334791266,1723571906525,500.0,8.537e-05,2]
[334791267,1723571907197,500.0,8.537e-05,2]
[334791268,1723571907558,500.0,8.537e-05,2]
[334791269,1723571907838,500.0,8.537e-05,2]
[334791270,1723571908155,500.0,8.537e-05,2]
[334791271,1723571908812,500.0,8.537e-05,2]
[334791272,1723571909132,726.0,8.537e-05,2]
[334791273,1723571909998,264.1837097,8.537e-05,2]
[334791274,1723571915821,973.6688372,8.537e-05,2]
[334791275,1723571919661,1269.15931583,8.537e-05,2]
[334791276,1723571920196,364.08779609,8.537e-05,2]
[334791277,1723571923350,155.0,8.537e-05,2]
[334791278,1723571925959,3071.43156646,8.537e-05,2]
[334791279,1723571927333,173.90652039,8.537e-05,2]
[334791280,1723571928111,1223.59389157,8.537e-05,2]
[334791281,1723571930139,291.65836493,8.537e-05,2]
[334791282,1723571931253,155.2081123,8.537e-05,2]
[334791283,1723571935397,155.0,8.537e-05,2]
[334791284,1723571936570,159.09255227,8.537e-05,2]
[334791285,1723571939654,693.33525753,8.537e-05,2]
[334791286,1723571941005,1370.54779908,8.537e-05,2]
[334791287,1723571941109,155.0,8.537e-05,2]
[334791288,1723571943855,4329.43272647,8.537e-05,2]
[334791289,1723571945729,412.00852602,8.537e-05,2]
[334791290,1723571946510,155.0,8.537e-05,2]
[334791291,1723571948497,246.58960044,8.537e-05,2]
[334791292,1723571953998,485.74520944,8.537e-05,2]
[334791293,1723571954650,693.33525753,8.537e-05,2]
[334791294,1723571954837,180.52653024,8.537e-05,2]
[334791295,1723571958661,8393.80340235,8.537e-05,2]
[334791296,1723571958687,7842.95375402,8.537e-05,2]
[334791297,1723571960143,291.65836493,8.537e-05,2]
[334791298,1723571970268,1341.10248415,8.537e-05,2]
[334791299,1723571975376,760.25096327,8.537e-05,2]
[334791300,1723571976439,227.78421077,8.537e-05,2]
[334791301,1723571982908,425.98331669,8.537e-05,2]
[334791302,1723571985244,872.46047691,8.537e-05,2]
[334791303,1723571987982,495.16729842,8.537e-05,2]
[334791304,1723571999823,973.6688372,8.537e-05,2]
[334791305,1723572003093,59155.08193006,8.537e-05,2]
[334791308,1723572015176,364.08779609,8.537e-05,2]
[334791309,1723572017957,1252.74082596,8.537e-05,2]
[334791310,1723572019682,1269.15931583,8.537e-05,2]
[334791311,1723572029552,159.09255227,8.537e-05,2]
[334791312,1723572031510,259.91950985,8.537e-05,2]
[334791313,1723572031533,8.59346006,8.537e-05,2]
[334791314,1723572033674,16236.75715637,8.537e-05,2]
[334791315,1723572052118,155.0,8.537e-05,2]
[334791316,1723572054677,378.79478689,8.537e-05,2]
[334791317,1723572074770,425.98331669,8.537e-05,2]
[334791318,1723572076718,184.52,7.923e-05,2]
[334791319,1723572077236,227.78421077,8.537e-05,2]
[334791320,1723572078383,760.25096327,8.537e-05,2]
[334791321,1723572081200,291.65836493,8.537e-05,2]
[334791322,1723572090845,973.6688372,8.537e-05,2]
[334791323,1723572103491,253.14017643,8.537e-05,2]
[334791324,1723572107387,815.84958563,8.537e-05,2]
[334791325,1723572114499,1067.06,8.219e-05,2]
[334791326,1723572140578,159.09255227,8.537e-05,2]
[334791327,1723572152668,1260.00879078,8.219e-05,2]
[334791328,1723572159250,227.78421077,8.219e-05,2]
[334791329,1723572170734,425.98331669,8.219e-05,2]
[334791330,1723572177150,291.65836493,8.219e-05,2]
[334791331,1723572183839,973.6688372,8.219e-05,2]
[334791332,1723572183901,503.60128014,8.219e-05,2]
[334791333,1723572224569,159.09255227,8.219e-05,2]
[334791334,1723572253286,232.00163788,8.219e-05,2]
[334791335,1723572271752,227.78421077,8.219e-05,2]
[334791336,1723572286163,291.65836493,8.219e-05,2]
[334791337,1723572295870,973.6688372,8.219e-05,2]
[334791338,1723572316599,436.95,9.648e-05,2]
[334791340,1723572336592,159.09255227,8.219e-05,2]
[334791341,1723572339493,165.49,9.648e-05,2]
[334791342,1723572356665,155.23,8.219e-05,2]
[334791343,1723572368755,227.78421077,9.648e-05,2]
[334791344,1723572387206,244.63475139,9.648e-05,2]
[334791345,1723572387860,816.32856081,9.648e-05,2]
[334791346,1723572426572,159.09255227,9.648e-05,2]
[334791347,1723572459778,227.78421077,9.648e-05,2]
[334791348,1723572528081,159.9573306,9.648e-05,2]
[334791349,1723572544764,205.67713337,9.648e-05,2]
[334791350,1723572630095,483.95,9.617e-05,2]
[334791388,1723572632607,-874.3,9.673e-05,2]
[334791389,1723572632617,-300.0,9.676e-05,2]
[334791390,1723572632626,-250.0,9.677e-05,2]
[334791391,1723572632635,-933.88069036,9.677e-05,2]
[334791392,1723572632646,-15675.1780114,9.677e-05,2]
[334791393,1723572632658,-7290.94129824,9.677e-05,2]
[334791394,1723572632667,-160.07,9.764e-05,2]
[334791395,1723572632678,-1852.42,9.764e-05,2]
[334791396,1723572632687,-200.0,9.767e-05,2]
[334791397,1723572632697,-880.0,9.772e-05,2]
[334791398,1723572632707,-500.0,9.792e-05,2]
[334791399,1723572632717,-233.73791203,9.818e-05,5]
[334791400,1723572632726,-767.59,9.825e-05,2]
[334791401,1723572632736,-7544.65,9.904e-05,2]
[334791402,1723572632746,-446.11,9.904e-05,2]
[334791403,1723572632756,-150.0,0.00010072,2]
[334791404,1723572632765,-363.79242468,0.00010163,2]
[334791405,1723572632775,-521.9752,0.00010248,2]
[334791406,1723572632785,-179.67,0.00010339,2]
[334791407,1723572632795,-693.33525753,0.00010348,2]
[334791408,1723572632804,-10858.01711504,0.00010348,2]
[334791409,1723572632816,-1445.77865243,0.00010348,2]
[334791410,1723572632827,-482.99531256,0.00010348,2]
[334791411,1723572632839,-1042.5,0.00010348,2]
[334791414,1723572632860,-552.60278753,0.00010348,2]
[334791416,1723572632870,-169.0,0.00010366,2]
[334791418,1723572632880,-1067.06,0.0001047,2]
[334791420,1723572632889,-420.0,0.00010644,2]
[334791422,1723572632899,-447.734,0.00010754,2]
[334791424,1723572632910,-151.212,0.00010754,2]
[334791426,1723572632923,-539.46534224,0.00010754,2]
[334791428,1723572632935,-355.32465776,0.00010754,2]
[334791430,1723572632946,-11884.45934224,0.000108,2]
[334791432,1723572632962,-916.50168511,0.000108,2]
[334791435,1723572632985,-488.29864495,0.000108,2]
[334791437,1723572632997,-377.86782155,0.000108,2]
[334791441,1723572638202,-265.69,0.000108,2]
[334791442,1723572638256,-7266.18250615,0.000108,2]
[334791443,1723572638265,-17311.739,0.00010865,2]
[334791444,1723572638275,-1094.809,0.00010865,2]
[334791445,1723572638285,-1449.42935,0.0001089,2]
[334791446,1723572638294,-2064.9736,0.000109,2]
[334791447,1723572638306,-335.4322,0.000109,2]
[334791448,1723572638315,-1243.4245,0.000109,2]
[334791449,1723572638325,-11022.1707,0.000109,2]